[Event "January 2 Early 2024"]
[Site "https://www.chess.com"]
[Date "2024.01.02"]
[Round "8"]
[White "Larina, Maria"]
[Black "Tagliati, Eleonore"]
[Result "1-0"]
[Board "166"]
[TimeControl "180+1"]
[WhiteFideId "24113182"]
[BlackFideId "45172234"]
[WhiteElo "2312"]
[BlackElo "2185"]
[WhiteTeam "FID"]
[BlackTeam "FRA"]
[WhiteClock "0:00:04"]
[BlackClock "0:00:21"]

1. e4 {[%clk 0:02:59]}  c5 {[%clk 0:02:57]} 2. Nc3 {[%clk 0:02:58]}  Nc6 {[%clk 0:02:57]} 3. g3 {[%clk 0:02:58]}  g6 {[%clk 0:02:57]} 4. Bg2 {[%clk 0:02:58]}  Bg7 {[%clk 0:02:57]} 5. d3 {[%clk 0:02:58]}  e5 {[%clk 0:02:57]} 6. Nf3 {[%clk 0:02:51]}  Nge7 {[%clk 0:02:54]} 7. O-O {[%clk 0:02:49]}  O-O {[%clk 0:02:54]} 8. Be3 {[%clk 0:02:42]}  d6 {[%clk 0:02:54]} 9. Ne2 {[%clk 0:02:36]}  h6 {[%clk 0:02:49]} 10. c3 {[%clk 0:02:34]}  f5 {[%clk 0:02:43]} 11. Qd2 {[%clk 0:02:32]}  Kh7 {[%clk 0:02:40]} 12. Nh4 {[%clk 0:02:19]}  Be6 {[%clk 0:02:34]} 13. d4 {[%clk 0:02:05]}  cxd4 {[%clk 0:02:30]} 14. cxd4 {[%clk 0:02:05]}  fxe4 {[%clk 0:02:20]} 15. Bxe4 {[%clk 0:02:03]}  d5 {[%clk 0:02:19]} 16. Bg2 {[%clk 0:01:54]}  e4 {[%clk 0:02:17]} 17. f3 {[%clk 0:01:51]}  exf3 {[%clk 0:02:05]} 18. Nxf3 {[%clk 0:01:51]}  Nf5 {[%clk 0:02:05]} 19. Bf2 {[%clk 0:01:50]}  Bf7 {[%clk 0:02:02]} 20. b4 {[%clk 0:01:43]}  Nd6 {[%clk 0:02:02]} 21. b5 {[%clk 0:01:30]}  Nxb5 {[%clk 0:01:58]} 22. a4 {[%clk 0:01:26]}  Nd6 {[%clk 0:01:57]} 23. Qd3 {[%clk 0:01:25]}  Ne4 {[%clk 0:01:52]} 24. Be3 {[%clk 0:01:24]}  Nb4 {[%clk 0:01:43]} 25. Qb3 {[%clk 0:01:22]}  a5 {[%clk 0:01:42]} 26. Ne5 {[%clk 0:01:12]}  Bxe5 {[%clk 0:01:36]} 27. dxe5 {[%clk 0:01:13]}  d4 {[%clk 0:01:34]} 28. e6 {[%clk 0:01:03]}  dxe3 {[%clk 0:01:25]} 29. Bxe4 {[%clk 0:00:34]}  Bg8 {[%clk 0:01:00]} 30. Nf4 {[%clk 0:00:29]}  Rf6 {[%clk 0:00:57]} 31. Qxe3 {[%clk 0:00:26]}  Rc8 {[%clk 0:00:47]} 32. Rae1 {[%clk 0:00:10]}  Qe7 {[%clk 0:00:45]} 33. h4 {[%clk 0:00:10]}  Nc2 {[%clk 0:00:44]} 34. Bxc2 {[%clk 0:00:09]}  Rxc2 {[%clk 0:00:45]} 35. Qd3 {[%clk 0:00:08]}  Rc6 {[%clk 0:00:40]} 36. Nd5 {[%clk 0:00:07]}  Rxf1+ {[%clk 0:00:37]} 37. Rxf1 {[%clk 0:00:08]}  Qxe6 {[%clk 0:00:36]} 38. Nf6+ {[%clk 0:00:09]}  Kg7 {[%clk 0:00:36]} 39. Nxg8 {[%clk 0:00:07]}  Kxg8 {[%clk 0:00:26]} 40. Qd8+ {[%clk 0:00:07]}  Kg7 {[%clk 0:00:26]} 41. Qf8+ {[%clk 0:00:06]}  Kh7 {[%clk 0:00:23]} 42. Rf7+ {[%clk 0:00:06]}  Qxf7 {[%clk 0:00:24]} 43. Qxf7+ {[%clk 0:00:07]}  Kh8 {[%clk 0:00:24]} 44. Qxb7 {[%clk 0:00:07]}  Rc1+ {[%clk 0:00:22]} 45. Kf2 {[%clk 0:00:08]}  Rc2+ {[%clk 0:00:22]} 46. Kf3 {[%clk 0:00:08]}  Ra2 {[%clk 0:00:20]} 47. Qb8+ {[%clk 0:00:06]}  Kg7 {[%clk 0:00:20]} 48. Qe5+ {[%clk 0:00:06]}  Kh7 {[%clk 0:00:20]} 49. Qxa5 {[%clk 0:00:07]}  Ra3+ {[%clk 0:00:20]} 50. Kf4 {[%clk 0:00:04]}  Ra2 {[%clk 0:00:21]} 1-0

[Event "January 2 Early 2024"]
[Site "https://www.chess.com"]
[Date "2024.01.02"]
[Round "8"]
[White "Thiel, Thomas"]
[Black "Zampronha, Wladimir Camilo"]
[Result "0-1"]
[Board "167"]
[TimeControl "180+1"]
[WhiteFideId "4615964"]
[BlackFideId "2103087"]
[WhiteElo "2182"]
[BlackElo "2307"]
[WhiteTeam "GER"]
[BlackTeam "BRA"]
[WhiteClock "0:00:15"]
[BlackClock "0:00:24"]

1. e4 {[%clk 0:02:58]}  c5 {[%clk 0:02:58]} 2. Nc3 {[%clk 0:02:56]}  Nc6 {[%clk 0:02:57]} 3. Bb5 {[%clk 0:02:55]}  e6 {[%clk 0:02:54]} 4. Bxc6 {[%clk 0:02:53]}  bxc6 {[%clk 0:02:51]} 5. f4 {[%clk 0:02:54]}  d5 {[%clk 0:02:51]} 6. Nf3 {[%clk 0:02:48]}  Nf6 {[%clk 0:02:51]} 7. Qe2 {[%clk 0:02:46]}  Be7 {[%clk 0:02:50]} 8. O-O {[%clk 0:02:45]}  O-O {[%clk 0:02:49]} 9. d3 {[%clk 0:02:45]}  c4 {[%clk 0:02:45]} 10. d4 {[%clk 0:02:43]}  dxe4 {[%clk 0:02:35]} 11. Nxe4 {[%clk 0:02:41]}  Nxe4 {[%clk 0:02:36]} 12. Qxe4 {[%clk 0:02:41]}  Qd5 {[%clk 0:02:36]} 13. Qxd5 {[%clk 0:02:32]}  cxd5 {[%clk 0:02:34]} 14. c3 {[%clk 0:02:20]}  Rb8 {[%clk 0:02:29]} 15. Ne5 {[%clk 0:02:12]}  Rb6 {[%clk 0:02:25]} 16. a4 {[%clk 0:02:06]}  Rd8 {[%clk 0:02:06]} 17. a5 {[%clk 0:02:06]}  Ra6 {[%clk 0:02:06]} 18. Bd2 {[%clk 0:01:50]}  Bd7 {[%clk 0:02:04]} 19. Rfb1 {[%clk 0:01:44]}  Be8 {[%clk 0:01:51]} 20. b4 {[%clk 0:01:42]}  cxb3 {[%clk 0:01:48]} 21. Rxb3 {[%clk 0:01:42]}  Bd6 {[%clk 0:01:36]} 22. Nd3 {[%clk 0:01:41]}  Rb8 {[%clk 0:01:29]} 23. Rxb8 {[%clk 0:01:38]}  Bxb8 {[%clk 0:01:29]} 24. Nc5 {[%clk 0:01:37]}  Rc6 {[%clk 0:01:22]} 25. Rb1 {[%clk 0:01:33]}  Rc8 {[%clk 0:01:21]} 26. Rb7 {[%clk 0:01:31]}  Bc6 {[%clk 0:01:21]} 27. Rb2 {[%clk 0:01:24]}  Bc7 {[%clk 0:01:12]} 28. a6 {[%clk 0:01:23]}  Bb6 {[%clk 0:01:11]} 29. Kf2 {[%clk 0:01:19]}  Kf8 {[%clk 0:01:01]} 30. Ke3 {[%clk 0:01:16]}  Ke7 {[%clk 0:01:01]} 31. Kd3 {[%clk 0:01:07]}  Kd6 {[%clk 0:01:01]} 32. Be3 {[%clk 0:01:06]}  Be8 {[%clk 0:00:52]} 33. g3 {[%clk 0:00:59]}  Kc6 {[%clk 0:00:51]} 34. Na4 {[%clk 0:00:52]}  Kc7 {[%clk 0:00:48]} 35. Nc5 {[%clk 0:00:51]}  Rb8 {[%clk 0:00:42]} 36. Bd2 {[%clk 0:00:44]}  Bxc5 {[%clk 0:00:41]} 37. Rxb8 {[%clk 0:00:43]}  Kxb8 {[%clk 0:00:40]} 38. dxc5 {[%clk 0:00:44]}  Bb5+ {[%clk 0:00:39]} 39. Kd4 {[%clk 0:00:44]}  Bxa6 {[%clk 0:00:39]} 40. f5 {[%clk 0:00:44]}  Kc7 {[%clk 0:00:34]} 41. Bf4+ {[%clk 0:00:40]}  Kd7 {[%clk 0:00:32]} 42. Bb8 {[%clk 0:00:36]}  exf5 {[%clk 0:00:30]} 43. Kxd5 {[%clk 0:00:34]}  Bb7+ {[%clk 0:00:30]} 44. Kd4 {[%clk 0:00:34]}  a5 {[%clk 0:00:30]} 45. Bd6 {[%clk 0:00:28]}  a4 {[%clk 0:00:28]} 46. Bf8 {[%clk 0:00:28]}  g6 {[%clk 0:00:28]} 47. Ke5 {[%clk 0:00:26]}  Bc6 {[%clk 0:00:25]} 48. Kd4 {[%clk 0:00:15]}  a3 {[%clk 0:00:24]} 0-1

[Event "January 2 Early 2024"]
[Site "https://www.chess.com"]
[Date "2024.01.02"]
[Round "8"]
[White "Latreche, Khadidja"]
[Black "Eggleston, Thomas A"]
[Result "1-0"]
[Board "170"]
[TimeControl "180+1"]
[WhiteFideId "7901780"]
[BlackFideId "412139"]
[WhiteElo "2129"]
[BlackElo "2289"]
[WhiteTeam "ALG"]
[BlackTeam "ENG"]
[WhiteClock "0:00:16"]
[BlackClock "0:00:00"]

1. e4 {[%clk 0:03:00]}  e6 {[%clk 0:02:57]} 2. Qe2 {[%clk 0:02:59]}  c5 {[%clk 0:02:55]} 3. Nf3 {[%clk 0:02:58]}  Nc6 {[%clk 0:02:56]} 4. d3 {[%clk 0:02:58]}  g6 {[%clk 0:02:55]} 5. g3 {[%clk 0:02:58]}  Bg7 {[%clk 0:02:53]} 6. Bg2 {[%clk 0:02:59]}  d6 {[%clk 0:02:53]} 7. O-O {[%clk 0:02:59]}  Nge7 {[%clk 0:02:53]} 8. c3 {[%clk 0:02:59]}  e5 {[%clk 0:02:53]} 9. h3 {[%clk 0:02:58]}  h6 {[%clk 0:02:53]} 10. Be3 {[%clk 0:02:55]}  Be6 {[%clk 0:02:53]} 11. Na3 {[%clk 0:02:54]}  O-O {[%clk 0:02:52]} 12. Rad1 {[%clk 0:02:49]}  f5 {[%clk 0:02:50]} 13. exf5 {[%clk 0:02:48]}  Nxf5 {[%clk 0:02:47]} 14. d4 {[%clk 0:02:42]}  Nxe3 {[%clk 0:02:29]} 15. fxe3 {[%clk 0:02:40]}  cxd4 {[%clk 0:02:25]} 16. exd4 {[%clk 0:02:40]}  Bxa2 {[%clk 0:02:22]} 17. dxe5 {[%clk 0:02:15]}  Qb6+ {[%clk 0:02:21]} 18. Kh2 {[%clk 0:02:04]}  dxe5 {[%clk 0:02:18]} 19. b4 {[%clk 0:01:57]}  Bb3 {[%clk 0:02:08]} 20. Rd7 {[%clk 0:01:54]}  Be6 {[%clk 0:02:05]} 21. Rd6 {[%clk 0:01:39]}  Bf7 {[%clk 0:01:17]} 22. Rfd1 {[%clk 0:01:37]}  Rad8 {[%clk 0:01:08]} 23. Nh4 {[%clk 0:01:15]}  Kh7 {[%clk 0:00:55]} 24. Be4 {[%clk 0:01:12]}  Qc7 {[%clk 0:00:20]} 25. Nb5 {[%clk 0:01:00]}  Qe7 {[%clk 0:00:19]} 26. Bxg6+ {[%clk 0:00:53]}  Kg8 {[%clk 0:00:15]} 27. Bxf7+ {[%clk 0:00:39]}  Qxf7 {[%clk 0:00:15]} 28. Rxd8 {[%clk 0:00:36]}  Nxd8 {[%clk 0:00:12]} 29. Nd6 {[%clk 0:00:35]}  Qf2+ {[%clk 0:00:11]} 30. Qxf2 {[%clk 0:00:35]}  Rxf2+ {[%clk 0:00:11]} 31. Kg1 {[%clk 0:00:32]}  Rc2 {[%clk 0:00:10]} 32. Ne4 {[%clk 0:00:32]}  Ne6 {[%clk 0:00:10]} 33. Rd7 {[%clk 0:00:30]}  b6 {[%clk 0:00:06]} 34. Nf5 {[%clk 0:00:30]}  a5 {[%clk 0:00:05]} 35. Re7 {[%clk 0:00:28]}  Rc1+ {[%clk 0:00:03]} 36. Kf2 {[%clk 0:00:28]}  Rc2+ {[%clk 0:00:03]} 37. Ke3 {[%clk 0:00:26]}  Ng5 {[%clk 0:00:01]} 38. Rxg7+ {[%clk 0:00:24]}  Kf8 {[%clk 0:00:01]} 39. Nxg5 {[%clk 0:00:19]}  hxg5 {[%clk 0:00:02]} 40. Rxg5 {[%clk 0:00:19]}  Rxc3+ {[%clk 0:00:02]} 41. Ke4 {[%clk 0:00:19]}  axb4 {[%clk 0:00:03]} 42. Nd6 {[%clk 0:00:18]}  b3 {[%clk 0:00:03]} 43. Rxe5 {[%clk 0:00:18]}  b2 {[%clk 0:00:03]} 44. Rb5 {[%clk 0:00:19]}  Rc2 {[%clk 0:00:02]} 45. Nc4 {[%clk 0:00:18]}  Rg2 {[%clk 0:00:02]} 46. Rxb2 {[%clk 0:00:18]}  Rxg3 {[%clk 0:00:01]} 47. Nxb6 {[%clk 0:00:17]}  Rxh3 {[%clk 0:00:00]} 48. Rf2+ {[%clk 0:00:16]} 1-0

[Event "January 2 Early 2024"]
[Site "https://www.chess.com"]
[Date "2024.01.02"]
[Round "8"]
[White "Onslow, Alfie"]
[Black "VictMin"]
[Result "1-0"]
[Board "172"]
[TimeControl "180+1"]
[WhiteFideId "436976"]
[WhiteElo "2284"]
[BlackElo "2035"]
[WhiteTeam "ENG"]
[WhiteClock "0:00:24"]
[BlackClock "0:00:03"]

1. e4 {[%clk 0:03:00]}  c6 {[%clk 0:02:59]} 2. Nf3 {[%clk 0:03:00]}  d5 {[%clk 0:03:00]} 3. d3 {[%clk 0:02:57]}  dxe4 {[%clk 0:02:55]} 4. dxe4 {[%clk 0:02:58]}  Qxd1+ {[%clk 0:02:56]} 5. Kxd1 {[%clk 0:02:59]}  Bg4 {[%clk 0:02:55]} 6. Be2 {[%clk 0:02:59]}  Nd7 {[%clk 0:02:54]} 7. Ne1 {[%clk 0:02:56]}  Ngf6 {[%clk 0:02:48]} 8. Nc3 {[%clk 0:02:53]}  O-O-O {[%clk 0:02:46]} 9. Nd3 {[%clk 0:02:46]}  Nc5 {[%clk 0:02:34]} 10. f3 {[%clk 0:02:41]}  Nxd3 {[%clk 0:02:34]} 11. Bxd3 {[%clk 0:02:32]}  Bh5 {[%clk 0:02:31]} 12. Be3 {[%clk 0:02:32]}  Kb8 {[%clk 0:02:30]} 13. Ke2 {[%clk 0:02:29]}  e5 {[%clk 0:02:28]} 14. a4 {[%clk 0:02:21]}  Bb4 {[%clk 0:02:27]} 15. a5 {[%clk 0:02:21]}  Rhe8 {[%clk 0:02:20]} 16. Ra4 {[%clk 0:02:20]}  Bxc3 {[%clk 0:02:16]} 17. bxc3 {[%clk 0:02:21]}  Nd7 {[%clk 0:02:09]} 18. Rb1 {[%clk 0:02:15]}  Ka8 {[%clk 0:01:57]} 19. Rc4 {[%clk 0:01:24]}  f6 {[%clk 0:01:53]} 20. a6 {[%clk 0:01:23]}  Rb8 {[%clk 0:01:45]} 21. axb7+ {[%clk 0:01:16]}  Rxb7 {[%clk 0:01:46]} 22. Ra1 {[%clk 0:01:01]}  Rc7 {[%clk 0:01:38]} 23. Rca4 {[%clk 0:01:00]}  c5 {[%clk 0:01:31]} 24. Bb5 {[%clk 0:00:59]}  Rec8 {[%clk 0:01:23]} 25. Ra6 {[%clk 0:00:41]}  Nb8 {[%clk 0:00:59]} 26. R6a5 {[%clk 0:00:32]}  Rb7 {[%clk 0:00:52]} 27. Bc4 {[%clk 0:00:24]}  Bf7 {[%clk 0:00:50]} 28. Bxf7 {[%clk 0:00:23]}  Rxf7 {[%clk 0:00:49]} 29. Bxc5 {[%clk 0:00:23]}  Rxc5 {[%clk 0:00:47]} 30. Rxc5 {[%clk 0:00:23]}  Kb7 {[%clk 0:00:39]} 31. Rb1+ {[%clk 0:00:23]}  Ka8 {[%clk 0:00:36]} 32. Rc8 {[%clk 0:00:23]}  Rb7 {[%clk 0:00:36]} 33. Rxb7 {[%clk 0:00:24]}  Kxb7 {[%clk 0:00:37]} 34. Rg8 {[%clk 0:00:24]}  Nd7 {[%clk 0:00:25]} 35. Rxg7 {[%clk 0:00:25]}  Kc6 {[%clk 0:00:03]} 36. Rxh7 {[%clk 0:00:24]} 1-0

[Event "January 2 Early 2024"]
[Site "https://www.chess.com"]
[Date "2024.01.02"]
[Round "8"]
[White "Pesotskiy, Mikhail"]
[Black "Montano Vicente, Guadalupe"]
[Result "1-0"]
[Board "176"]
[TimeControl "180+1"]
[WhiteFideId "34164453"]
[BlackFideId "5181399"]
[WhiteElo "2488"]
[BlackElo "2180"]
[WhiteTeam "RUS"]
[BlackTeam "MEX"]
[WhiteClock "0:00:19"]
[BlackClock "0:00:09"]

1. d4 {[%clk 0:03:00]}  Nf6 {[%clk 0:02:58]} 2. c4 {[%clk 0:02:59]}  g6 {[%clk 0:02:56]} 3. Nc3 {[%clk 0:02:56]}  Bg7 {[%clk 0:02:54]} 4. e4 {[%clk 0:02:56]}  d6 {[%clk 0:02:51]} 5. f3 {[%clk 0:02:56]}  O-O {[%clk 0:02:48]} 6. Be3 {[%clk 0:02:57]}  c5 {[%clk 0:02:42]} 7. dxc5 {[%clk 0:02:58]}  dxc5 {[%clk 0:02:41]} 8. Qxd8 {[%clk 0:02:58]}  Rxd8 {[%clk 0:02:41]} 9. Bxc5 {[%clk 0:02:59]}  Nc6 {[%clk 0:02:41]} 10. Nge2 {[%clk 0:02:58]}  Nd7 {[%clk 0:02:33]} 11. Be3 {[%clk 0:02:57]}  Nde5 {[%clk 0:02:32]} 12. Nf4 {[%clk 0:02:56]}  Nb4 {[%clk 0:02:22]} 13. Rc1 {[%clk 0:02:55]}  Bd7 {[%clk 0:01:37]} 14. a3 {[%clk 0:02:51]}  Nbc6 {[%clk 0:01:34]} 15. Be2 {[%clk 0:02:48]}  Na5 {[%clk 0:01:22]} 16. Nb1 {[%clk 0:02:12]}  Rdc8 {[%clk 0:01:12]} 17. Nd2 {[%clk 0:02:12]}  b5 {[%clk 0:00:33]} 18. c5 {[%clk 0:02:09]}  Nec4 {[%clk 0:00:30]} 19. Nxc4 {[%clk 0:02:02]}  bxc4 {[%clk 0:00:20]} 20. Nd5 {[%clk 0:01:15]}  Kf8 {[%clk 0:00:20]} 21. Bxc4 {[%clk 0:01:01]}  Bxb2 {[%clk 0:00:18]} 22. Rc2 {[%clk 0:01:02]}  Nxc4 {[%clk 0:00:18]} 23. Rxc4 {[%clk 0:01:03]}  Bxa3 {[%clk 0:00:18]} 24. Kf2 {[%clk 0:01:00]}  Bb2 {[%clk 0:00:18]} 25. Rb1 {[%clk 0:00:58]}  Be5 {[%clk 0:00:17]} 26. f4 {[%clk 0:00:58]}  Bg7 {[%clk 0:00:18]} 27. Rcc1 {[%clk 0:00:31]}  Bc6 {[%clk 0:00:18]} 28. Kf3 {[%clk 0:00:24]}  e6 {[%clk 0:00:17]} 29. Nb4 {[%clk 0:00:24]}  Ke8 {[%clk 0:00:17]} 30. Nxc6 {[%clk 0:00:23]}  Rxc6 {[%clk 0:00:17]} 31. Rb7 {[%clk 0:00:24]}  Bf8 {[%clk 0:00:17]} 32. Rd1 {[%clk 0:00:22]}  Rac8 {[%clk 0:00:17]} 33. Rdd7 {[%clk 0:00:22]}  Bxc5 {[%clk 0:00:17]} 34. Bxc5 {[%clk 0:00:22]}  Rxc5 {[%clk 0:00:17]} 35. Rxf7 {[%clk 0:00:23]}  Rc3+ {[%clk 0:00:17]} 36. Kg4 {[%clk 0:00:23]}  Rc2 {[%clk 0:00:17]} 37. Rxh7 {[%clk 0:00:19]}  Rxg2+ {[%clk 0:00:17]} 38. Kf3 {[%clk 0:00:19]}  Rgc2 {[%clk 0:00:09]} 39. Rh8# {[%clk 0:00:19]} 1-0

[Event "January 2 Early 2024"]
[Site "https://www.chess.com"]
[Date "2024.01.02"]
[Round "8"]
[White "Von Buelow, Georg"]
[Black "Alimpic, Aleksa"]
[Result "0-1"]
[Board "177"]
[TimeControl "180+1"]
[WhiteFideId "4620658"]
[BlackFideId "974323"]
[WhiteElo "2176"]
[BlackElo "2482"]
[WhiteTeam "GER"]
[BlackTeam "SRB"]
[WhiteClock "0:00:00"]
[BlackClock "0:00:03"]

1. e4 {[%clk 0:02:53]}  c5 {[%clk 0:02:59]} 2. Nf3 {[%clk 0:02:51]}  d6 {[%clk 0:02:59]} 3. d4 {[%clk 0:02:51]}  cxd4 {[%clk 0:03:00]} 4. Nxd4 {[%clk 0:02:52]}  Nf6 {[%clk 0:03:00]} 5. Nc3 {[%clk 0:02:52]}  Nc6 {[%clk 0:03:01]} 6. Bg5 {[%clk 0:02:52]}  e6 {[%clk 0:03:00]} 7. Qd2 {[%clk 0:02:51]}  a6 {[%clk 0:02:58]} 8. O-O-O {[%clk 0:02:50]}  Bd7 {[%clk 0:02:59]} 9. f4 {[%clk 0:02:49]}  b5 {[%clk 0:02:55]} 10. Nf3 {[%clk 0:02:40]}  h6 {[%clk 0:02:32]} 11. Bxf6 {[%clk 0:02:36]}  gxf6 {[%clk 0:02:33]} 12. f5 {[%clk 0:02:33]}  Qb6 {[%clk 0:02:16]} 13. Kb1 {[%clk 0:02:27]}  O-O-O {[%clk 0:02:14]} 14. Bd3 {[%clk 0:02:13]}  Kb8 {[%clk 0:02:07]} 15. Ne2 {[%clk 0:01:33]}  b4 {[%clk 0:01:42]} 16. fxe6 {[%clk 0:01:18]}  fxe6 {[%clk 0:01:41]} 17. Bc4 {[%clk 0:00:47]}  Ne5 {[%clk 0:01:28]} 18. Bb3 {[%clk 0:00:41]}  h5 {[%clk 0:01:08]} 19. Ned4 {[%clk 0:00:37]}  Bh6 {[%clk 0:01:04]} 20. Qe2 {[%clk 0:00:35]}  Rhe8 {[%clk 0:01:00]} 21. Rhf1 {[%clk 0:00:13]}  a5 {[%clk 0:00:59]} 22. Nh4 {[%clk 0:00:10]}  a4 {[%clk 0:00:46]} 23. Bc4 {[%clk 0:00:09]}  Rc8 {[%clk 0:00:36]} 24. Bb5 {[%clk 0:00:09]}  Bg5 {[%clk 0:00:29]} 25. Nhf3 {[%clk 0:00:08]}  Nxf3 {[%clk 0:00:22]} 26. gxf3 {[%clk 0:00:08]}  Bxb5 {[%clk 0:00:11]} 27. Nxb5 {[%clk 0:00:09]}  Bf4 {[%clk 0:00:09]} 28. Nd4 {[%clk 0:00:07]}  a3 {[%clk 0:00:08]} 29. b3 {[%clk 0:00:06]}  Ka7 {[%clk 0:00:07]} 30. c4 {[%clk 0:00:04]}  bxc3 {[%clk 0:00:06]} 31. Nc2 {[%clk 0:00:04]}  Qa6 {[%clk 0:00:04]} 32. Rd3 {[%clk 0:00:03]}  d5 {[%clk 0:00:04]} 33. exd5 {[%clk 0:00:02]}  exd5 {[%clk 0:00:05]} 34. Qd1 {[%clk 0:00:02]}  Bxh2 {[%clk 0:00:02]} 35. Rxd5 {[%clk 0:00:02]}  Rcd8 {[%clk 0:00:02]} 36. Rxd8 {[%clk 0:00:02]}  Rxd8 {[%clk 0:00:03]} 37. Qe2 {[%clk 0:00:02]}  Qxe2 {[%clk 0:00:03]} 38. Re1 {[%clk 0:00:00]}  Qxe1+ {[%clk 0:00:03]} 0-1

[Event "January 2 Early 2024"]
[Site "https://www.chess.com"]
[Date "2024.01.02"]
[Round "8"]
[White "Kekic, Armin"]
[Black "Blanco Diez, David"]
[Result "1-0"]
[Board "178"]
[TimeControl "180+1"]
[WhiteFideId "14401274"]
[BlackFideId "32032927"]
[WhiteElo "2285"]
[BlackElo "2414"]
[WhiteTeam "BIH"]
[BlackTeam "ESP"]
[WhiteClock "0:00:41"]
[BlackClock "0:00:00"]

1. e4 {[%clk 0:03:00]}  e5 {[%clk 0:02:52]} 2. Nf3 {[%clk 0:03:00]}  Nc6 {[%clk 0:02:50]} 3. Bb5 {[%clk 0:03:01]}  a6 {[%clk 0:02:50]} 4. Ba4 {[%clk 0:03:02]}  Nf6 {[%clk 0:02:50]} 5. O-O {[%clk 0:03:02]}  Be7 {[%clk 0:02:49]} 6. Re1 {[%clk 0:03:02]}  b5 {[%clk 0:02:49]} 7. Bb3 {[%clk 0:03:03]}  O-O {[%clk 0:02:50]} 8. a4 {[%clk 0:03:01]}  b4 {[%clk 0:02:50]} 9. a5 {[%clk 0:02:59]}  d5 {[%clk 0:02:44]} 10. exd5 {[%clk 0:02:57]}  Nxd5 {[%clk 0:02:45]} 11. Nxe5 {[%clk 0:02:53]}  Nxe5 {[%clk 0:02:46]} 12. Rxe5 {[%clk 0:02:53]}  c6 {[%clk 0:02:47]} 13. d4 {[%clk 0:02:52]}  Bd6 {[%clk 0:02:46]} 14. Re1 {[%clk 0:02:49]}  Qh4 {[%clk 0:02:45]} 15. g3 {[%clk 0:02:49]}  Qh3 {[%clk 0:02:44]} 16. Be3 {[%clk 0:02:45]}  Bg4 {[%clk 0:02:34]} 17. Qd3 {[%clk 0:02:43]}  Rae8 {[%clk 0:01:58]} 18. Nd2 {[%clk 0:02:33]}  f5 {[%clk 0:01:49]} 19. f4 {[%clk 0:02:09]}  Kh8 {[%clk 0:01:37]} 20. Bxd5 {[%clk 0:02:05]}  cxd5 {[%clk 0:01:33]} 21. Qxa6 {[%clk 0:02:03]}  Rxe3 {[%clk 0:01:20]} 22. Rxe3 {[%clk 0:01:39]}  Bxf4 {[%clk 0:01:19]} 23. Rae1 {[%clk 0:01:28]}  Bxe3+ {[%clk 0:01:16]} 24. Rxe3 {[%clk 0:01:28]}  f4 {[%clk 0:01:12]} 25. Qd6 {[%clk 0:01:23]}  Rc8 {[%clk 0:00:54]} 26. Qxf4 {[%clk 0:01:20]}  h5 {[%clk 0:00:52]} 27. c3 {[%clk 0:01:11]}  bxc3 {[%clk 0:00:43]} 28. bxc3 {[%clk 0:01:05]}  Bf5 {[%clk 0:00:32]} 29. Re5 {[%clk 0:00:49]}  Rxc3 {[%clk 0:00:17]} 30. Qxf5 {[%clk 0:00:42]}  Rc1+ {[%clk 0:00:12]} 31. Nf1 {[%clk 0:00:42]}  Qxf5 {[%clk 0:00:00]} 32. Rxf5 {[%clk 0:00:41]} 1-0

[Event "January 2 Early 2024"]
[Site "https://www.chess.com"]
[Date "2024.01.02"]
[Round "8"]
[White "Mende, Andreas"]
[Black "Khromkin, Andrey"]
[Result "0-1"]
[Board "183"]
[TimeControl "180+1"]
[WhiteFideId "4631102"]
[BlackFideId "4154126"]
[WhiteElo "2147"]
[BlackElo "2381"]
[WhiteTeam "GER"]
[BlackTeam "RUS"]
[WhiteClock "0:00:06"]
[BlackClock "0:01:07"]

1. c4 {[%clk 0:02:59]}  c5 {[%clk 0:02:10]} 2. g3 {[%clk 0:02:58]}  Nc6 {[%clk 0:02:06]} 3. Bg2 {[%clk 0:02:58]}  g6 {[%clk 0:02:07]} 4. Nf3 {[%clk 0:02:55]}  Bg7 {[%clk 0:02:06]} 5. Nc3 {[%clk 0:02:55]}  a6 {[%clk 0:02:03]} 6. O-O {[%clk 0:02:48]}  Rb8 {[%clk 0:02:04]} 7. a4 {[%clk 0:02:36]}  d6 {[%clk 0:01:42]} 8. h3 {[%clk 0:02:27]}  h5 {[%clk 0:01:43]} 9. e3 {[%clk 0:02:20]}  Nh6 {[%clk 0:01:43]} 10. d4 {[%clk 0:02:20]}  cxd4 {[%clk 0:01:43]} 11. exd4 {[%clk 0:02:20]}  Nf5 {[%clk 0:01:42]} 12. d5 {[%clk 0:02:08]}  Ne5 {[%clk 0:01:42]} 13. Qe2 {[%clk 0:01:44]}  Nxf3+ {[%clk 0:01:36]} 14. Qxf3 {[%clk 0:01:43]}  O-O {[%clk 0:01:33]} 15. Bd2 {[%clk 0:01:41]}  Qc7 {[%clk 0:01:32]} 16. b3 {[%clk 0:01:40]}  Nd4 {[%clk 0:01:32]} 17. Qd1 {[%clk 0:01:26]}  Bd7 {[%clk 0:01:32]} 18. Ra2 {[%clk 0:01:14]}  b5 {[%clk 0:01:30]} 19. axb5 {[%clk 0:00:59]}  axb5 {[%clk 0:01:31]} 20. cxb5 {[%clk 0:00:58]}  Nxb5 {[%clk 0:01:30]} 21. Nxb5 {[%clk 0:00:51]}  Bxb5 {[%clk 0:01:30]} 22. Re1 {[%clk 0:00:51]}  Rfc8 {[%clk 0:01:27]} 23. Ba5 {[%clk 0:00:47]}  Qd7 {[%clk 0:01:25]} 24. Qd2 {[%clk 0:00:34]}  Rc5 {[%clk 0:01:20]} 25. Bb4 {[%clk 0:00:28]}  Rc7 {[%clk 0:01:19]} 26. Qe3 {[%clk 0:00:19]}  Rcb7 {[%clk 0:01:20]} 27. Ba5 {[%clk 0:00:17]}  Rc7 {[%clk 0:01:21]} 28. b4 {[%clk 0:00:17]}  Rcb7 {[%clk 0:01:21]} 29. Rd2 {[%clk 0:00:16]}  Rc8 {[%clk 0:01:15]} 30. Qf4 {[%clk 0:00:15]}  Rc4 {[%clk 0:01:10]} 31. Qe3 {[%clk 0:00:14]}  Rb8 {[%clk 0:01:08]} 32. Qa3 {[%clk 0:00:12]}  Rbc8 {[%clk 0:01:09]} 33. Qb2 {[%clk 0:00:06]}  Bxb2 {[%clk 0:01:07]} 0-1

[Event "January 2 Early 2024"]
[Site "https://www.chess.com"]
[Date "2024.01.02"]
[Round "8"]
[White "Mesa Cruz, Juan Carlos"]
[Black "Smirnov, Timofey"]
[Result "1-0"]
[Board "187"]
[TimeControl "180+1"]
[WhiteFideId "6423400"]
[BlackFideId "24176427"]
[WhiteElo "2296"]
[BlackElo "1983"]
[WhiteTeam "DOM"]
[BlackTeam "RUS"]
[WhiteClock "0:00:11"]
[BlackClock "0:00:00"]

1. e4 {[%clk 0:03:00]}  e5 {[%clk 0:02:59]} 2. Nf3 {[%clk 0:02:59]}  Nf6 {[%clk 0:02:59]} 3. Bc4 {[%clk 0:02:54]}  Nxe4 {[%clk 0:02:58]} 4. Nc3 {[%clk 0:02:53]}  Nxc3 {[%clk 0:02:58]} 5. dxc3 {[%clk 0:02:54]}  f6 {[%clk 0:02:58]} 6. O-O {[%clk 0:02:36]}  d6 {[%clk 0:02:22]} 7. Nh4 {[%clk 0:02:34]}  Qe7 {[%clk 0:02:02]} 8. Qh5+ {[%clk 0:02:21]}  Kd8 {[%clk 0:01:52]} 9. f4 {[%clk 0:02:09]}  Be6 {[%clk 0:01:46]} 10. Bd3 {[%clk 0:01:42]}  Qe8 {[%clk 0:01:32]} 11. Bg6 {[%clk 0:01:21]}  Qd7 {[%clk 0:01:21]} 12. fxe5 {[%clk 0:00:59]}  dxe5 {[%clk 0:01:17]} 13. Be4 {[%clk 0:00:50]}  c6 {[%clk 0:00:41]} 14. Ng6 {[%clk 0:00:35]}  Qe8 {[%clk 0:00:28]} 15. Qd1+ {[%clk 0:00:35]}  Kc8 {[%clk 0:00:23]} 16. Nxh8 {[%clk 0:00:33]}  Bc5+ {[%clk 0:00:22]} 17. Kh1 {[%clk 0:00:30]}  Qxh8 {[%clk 0:00:22]} 18. b4 {[%clk 0:00:30]}  Bb6 {[%clk 0:00:22]} 19. Qd6 {[%clk 0:00:29]}  Qe8 {[%clk 0:00:14]} 20. Bxh7 {[%clk 0:00:25]}  Nd7 {[%clk 0:00:08]} 21. a4 {[%clk 0:00:13]}  Bc7 {[%clk 0:00:08]} 22. Qd3 {[%clk 0:00:12]}  Qh8 {[%clk 0:00:08]} 23. a5 {[%clk 0:00:11]}  Bg8 {[%clk 0:00:07]} 24. Bxg8 {[%clk 0:00:11]}  e4 {[%clk 0:00:03]} 25. Qh3 {[%clk 0:00:10]}  Qxg8 {[%clk 0:00:02]} 26. Bf4 {[%clk 0:00:10]}  Bxf4 {[%clk 0:00:02]} 27. Rxf4 {[%clk 0:00:10]}  Qf7 {[%clk 0:00:00]} 28. Re1 {[%clk 0:00:11]} 1-0